bitfinex/quotes_BTCUSD_20260315
["timestamp","ask_amount","ask_price","bid_price","bid_amount"]
[1773535332607,0.09339702,71066.0,71058.0,0.0002]
[1773535332828,0.09339702,71066.0,71060.0,0.0014]
[1773535335636,0.07035812,71065.0,71060.0,0.0014]
[1773535336939,0.07035812,71065.0,71060.0,0.0016618]
[1773535337275,0.16375514,71065.0,71060.0,0.0016618]
[1773535338436,0.07035799,71066.0,71060.0,0.0016618]
[1773535351987,0.07011867,71066.0,71060.0,0.0016618]
[1773535352976,0.07011867,71066.0,71060.0,0.0018618]
[1773535353179,0.07033868,71066.0,71060.0,0.0018618]
[1773535356249,0.09496701,71065.0,71057.0,0.0002]
[1773535356453,0.09496701,71065.0,71055.0,0.0016]
[1773535356655,0.09496701,71065.0,71055.0,0.0002]
[1773535356856,0.09496701,71065.0,71056.0,0.0014]
[1773535357281,0.09482205,71065.0,71057.0,0.0014]
[1773535358058,0.07035911,71064.0,71054.0,0.0014]
[1773535358253,0.09496701,71063.0,71054.0,0.0014]
[1773535358973,0.09478774,71063.0,71053.0,0.07037]
[1773535359167,0.09478774,71063.0,71054.0,0.0014]
[1773535359489,0.09478774,71063.0,71053.0,0.07037]
[1773535359810,0.09496701,71062.0,71053.0,0.0014]
[1773535362212,0.09496701,71060.0,71053.0,0.0014]
[1773535362577,0.09496701,71060.0,71053.0,0.0016]
[1773535363176,0.09478772,71060.0,71053.0,0.0016]
[1773535363380,0.09478772,71060.0,71053.0,0.00055896]
[1773535363569,0.09478772,71060.0,71051.0,0.0014]
[1773535364019,0.07036406,71059.0,71050.0,0.0002]
[1773535364202,0.07036406,71059.0,71051.0,0.0014]
[1773535366941,0.07018481,71059.0,71051.0,0.0014]
[1773535369464,0.07023528,71059.0,71051.0,0.0014]
[1773535373887,0.07005603,71059.0,71051.0,0.0014]
[1773535374436,0.07005603,71059.0,71048.0,0.00055179]
[1773535374437,0.09039275,71058.0,71048.0,0.00055179]
[1773535374738,0.09039275,71058.0,71049.0,0.0014]
[1773535375144,0.09015063,71058.0,71049.0,0.0014]
[1773535375397,0.09015063,71058.0,71051.0,0.0002]
[1773535375993,0.07036604,71057.0,71051.0,0.0002]
[1773535377411,0.09039275,71056.0,71048.0,0.00055179]
[1773535377566,0.0902134,71056.0,71049.0,0.0014]
[1773535377989,0.07036802,71055.0,71048.0,0.00055179]
[1773535378712,0.07036802,71055.0,71045.0,0.0002]
[1773535378924,0.09039275,71054.0,71044.0,0.0014]
[1773535379492,0.09039275,71054.0,71040.0,0.07104945]
[1773535379687,0.14979016,71050.0,71041.0,0.0014]
[1773535379889,0.09039275,71050.0,71041.0,0.0014]
[1773535380087,0.09039275,71054.0,71041.0,0.0014]
[1773535381193,0.09021346,71054.0,71041.0,0.0014]
[1773535381428,0.09021346,71054.0,71041.0,0.07178188]
[1773535381825,0.09021346,71054.0,71041.0,0.0014]
[1773535382029,0.08985483,71054.0,71041.0,0.0016]
[1773535382288,0.07037,71053.0,71041.0,0.0016]
[1773535382495,0.07037,71053.0,71041.0,0.0719817]
[1773535382911,0.07036505,71058.0,71042.0,0.06912491]
[1773535384465,0.07036505,71058.0,71043.0,0.07037991]
[1773535384644,0.07036505,71058.0,71044.0,0.06897639]
[1773535386440,0.0015271,71064.0,71045.0,0.07037792]
[1773535386441,0.0001271,71064.0,71045.0,0.07037792]
[1773535386649,0.07048624,71064.0,71046.0,0.06882506]
[1773535386853,0.0001271,71064.0,71046.0,0.06882506]
[1773535387489,0.0001271,71064.0,71048.0,0.06875182]
[1773535388520,5.22e-05,71064.0,71049.0,0.07037396]
[1773535388736,5.22e-05,71064.0,71049.0,0.13905029]
[1773535389201,0.00027221,71064.0,71049.0,0.13905029]
[1773535389513,9.29e-05,71064.0,71049.0,0.13905029]
[1773535390530,9.29e-05,71064.0,71049.0,0.07037396]
[1773535390902,9.29e-05,71064.0,71049.0,0.1389026]
[1773535393116,9.29e-05,71064.0,71049.0,0.07037396]
[1773535393516,9.29e-05,71064.0,71050.0,0.0014]
[1773535395474,0.07057136,71065.0,71051.0,0.07037198]
[1773535395777,0.07039206,71065.0,71051.0,0.07037198]
[1773535399382,0.09039275,71064.0,71051.0,0.07037198]
[1773535402108,0.16057334,71064.0,71051.0,0.07037198]
[1773535403453,0.16057334,71064.0,71051.0,0.07057198]
[1773535404015,0.16057334,71064.0,71052.0,0.0014]
[1773535404217,0.16057334,71064.0,71053.0,0.07037]
[1773535406675,0.16057334,71064.0,71053.0,0.07042047]
[1773535407294,0.07035988,71064.0,71053.0,0.07042047]
[1773535409036,0.07018059,71064.0,71053.0,0.07042047]
[1773535413937,0.07061207,71065.0,71053.0,0.16634799]
[1773535421052,0.0005718,71065.0,71053.0,0.07042047]
[1773535421198,0.07093011,71065.0,71054.0,0.09592752]
[1773535423554,0.07093011,71065.0,71053.0,0.07042047]
[1773535424052,0.07056986,71074.0,71053.0,0.07042047]
[1773535424234,0.07047934,71071.0,71054.0,0.09592752]
[1773535425843,0.07047934,71071.0,71056.0,0.09592752]
[1773535426212,0.00022001,71065.0,71056.0,0.09592752]
[1773535426413,0.07047934,71071.0,71055.0,0.07036802]
[1773535428039,0.0001271,71071.0,71055.0,0.07036802]
[1773535429407,0.0001271,71071.0,71055.0,0.16629554]
[1773535431812,0.0001271,71071.0,71056.0,0.09274633]
[1773535432574,0.0001271,71071.0,71057.0,0.07036604]
[1773535432725,0.0001271,71071.0,71058.0,0.0014]
[1773535432923,0.00034711,71071.0,71058.0,0.0014]
[1773535434137,0.09084415,71071.0,71058.0,0.0014]
[1773535436381,0.09084415,71071.0,71059.0,0.07036406]
[1773535436748,0.09084415,71071.0,71056.0,0.0014]
[1773535436749,0.09049704,71068.0,71056.0,0.0014]
[1773535436962,0.09049704,71068.0,71054.0,0.07036901]
[1773535437172,0.09049704,71068.0,71057.0,0.0014]
[1773535439236,0.16085312,71068.0,71058.0,0.07036505]
[1773535440401,0.16085312,71068.0,71058.0,0.07176505]
[1773535440810,0.00034711,71071.0,71058.0,0.07176505]
[1773535440980,0.00034711,71071.0,71058.0,0.16451138]
[1773535441983,0.00034711,71071.0,71058.0,0.07176505]
[1773535442977,0.00034711,71071.0,71058.0,0.16451138]
[1773535446813,0.00034711,71071.0,71058.0,0.07176505]
[1773535447014,0.00034711,71071.0,71059.0,0.09274633]
[1773535448074,0.00034711,71071.0,71060.0,0.07036307]
[1773535453472,0.16106554,71075.0,71060.0,0.07036307]
[1773535453473,0.00022001,71080.0,71061.0,0.09274633]
[1773535453668,0.00022001,71080.0,71061.0,0.1785611]
[1773535453873,0.00022001,71080.0,71063.0,0.178434]
[1773535454061,0.00022001,71080.0,71061.0,0.0001271]
[1773535454062,0.00022001,71080.0,71064.0,0.09414633]
[1773535454268,0.00022001,71080.0,71064.0,0.17000828]
[1773535454588,0.00022001,71080.0,71065.0,0.09274633]
[1773535455413,0.00022001,71080.0,71066.0,0.16310346]
[1773535463705,0.00022001,71080.0,71066.0,0.07035713]
[1773535463854,0.09511244,71078.0,71066.0,0.07035713]
[1773535464977,0.09511244,71078.0,71067.0,0.0014]
[1773535465633,0.09511244,71078.0,71068.0,0.0014]
[1773535465978,0.09511244,71078.0,71063.0,0.07035713]
[1773535466181,0.09511244,71078.0,71064.0,0.0014]
[1773535466603,0.09511244,71078.0,71065.0,0.0014]
[1773535467002,0.09511244,71078.0,71063.0,0.07035713]
[1773535467205,0.09511244,71078.0,71064.0,0.0014]
[1773535467581,0.09511244,71078.0,71065.0,0.0014]
[1773535468091,0.09511244,71078.0,71066.0,0.0014]
[1773535468578,0.09511244,71078.0,71067.0,0.0014]
[1773535468981,0.09511244,71078.0,71063.0,0.07035713]
[1773535469182,0.09511244,71078.0,71064.0,0.0014]
[1773535469619,0.09511244,71078.0,71065.0,0.0014]
[1773535470028,0.09511244,71078.0,71065.0,0.0002]
[1773535470219,0.09511244,71078.0,71066.0,0.0014]
[1773535470417,0.09511244,71077.0,71067.0,0.0014]
[1773535470840,0.09511244,71077.0,71065.0,0.0002]
[1773535471052,0.09511244,71077.0,71068.0,0.0014]
[1773535472258,0.09511244,71077.0,71069.0,0.07035416]
[1773535473433,0.09511244,71077.0,71069.0,0.07175416]
[1773535474647,0.09511244,71077.0,71069.0,0.0014]
[1773535474849,0.09511244,71076.0,71069.0,0.0014]
[1773535476833,0.09511244,71076.0,71067.0,0.0703543]
[1773535477029,0.09511244,71076.0,71068.0,0.0014]
[1773535477436,0.09511244,71076.0,71069.0,0.0014]
[1773535478284,0.09511244,71076.0,71067.0,0.0703543]
[1773535478585,0.09511244,71075.0,71067.0,0.0703543]
[1773535479040,0.09511244,71073.0,71065.0,0.0002]
[1773535479189,0.09511244,71073.0,71066.0,0.07035713]
[1773535481518,0.16546283,71073.0,71066.0,0.07035713]
[1773535484303,0.09511244,71073.0,71066.0,0.07035713]
[1773535484713,0.09511244,71073.0,71066.0,0.07055713]
[1773535486726,0.09511244,71072.0,71066.0,0.00015141]
[1773535487126,0.09511244,71072.0,71066.0,0.07050854]
[1773535491467,0.07034921,71074.0,71066.0,0.07050854]
[1773535492328,0.0703502,71075.0,71066.0,0.07050854]
[1773535497145,0.08742264,71076.0,71066.0,0.07050854]
[1773535497345,0.07034749,71076.0,71066.0,0.07050854]
[1773535498884,0.08742264,71075.0,71066.0,0.07050854]
[1773535499299,0.08742264,71075.0,71066.0,0.00015141]
[1773535499531,0.08742264,71075.0,71064.0,0.07035713]
[1773535499532,0.08742264,71075.0,71064.0,0.07175713]
[1773535499733,0.08742264,71075.0,71065.0,0.07035776]
[1773535499942,0.08742264,71075.0,71066.0,0.0002]
[1773535500375,0.08764265,71075.0,71061.0,0.0001271]
[1773535500544,0.08764265,71075.0,71058.0,0.07056499]
[1773535500717,0.08742264,71073.0,71058.0,0.07056474]
[1773535500892,0.08742264,71071.0,71058.0,0.07056474]
[1773535501511,0.08742264,71071.0,71058.0,0.00016]
[1773535501819,0.08742264,71069.0,71058.0,0.07052504]
[1773535502443,0.08742264,71069.0,71058.0,0.00016]
[1773535502989,0.08742264,71069.0,71054.0,0.07069577]
[1773535502990,0.08742264,71067.0,71054.0,0.07069577]
[1773535503324,0.08742264,71067.0,71054.0,0.07209577]
[1773535503727,0.0014,71066.0,71054.0,0.07209577]
[1773535505742,0.07035812,71065.0,71054.0,0.07209577]
[1773535513081,0.07035812,71065.0,71054.0,0.07069577]
[1773535513293,0.0014,71066.0,71054.0,0.07069577]
[1773535513485,0.07057203,71072.0,71055.0,0.09467699]
[1773535513830,0.00022001,71072.0,71057.0,0.09467699]
[1773535514013,0.00022001,71066.0,71057.0,0.09467699]
[1773535516243,0.00022001,71066.0,71058.0,0.16504204]
[1773535516534,0.00022001,71066.0,71059.0,0.0014]
[1773535516886,0.00022001,71066.0,71060.0,0.0014]
[1773535517650,0.00022001,71066.0,71060.0,0.00125065]
[1773535519733,0.00022001,71066.0,71061.0,0.07036208]
[1773535525386,0.00022001,71072.0,71062.0,0.09652136]
[1773535526153,0.00022001,71075.0,71062.0,0.09652136]
[1773535526366,0.0705685,71075.0,71062.0,0.09652136]
[1773535527368,0.0705685,71075.0,71063.0,0.0703601]
[1773535530852,0.00022001,71075.0,71063.0,0.0703601]
[1773535533210,0.00022001,71075.0,71063.0,0.16688146]
[1773535534794,0.00022001,71075.0,71063.0,0.0703601]
[1773535536431,0.07056843,71075.0,71062.0,0.04860914]
[1773535541412,0.15834651,71075.0,71062.0,0.04860914]
[1773535548609,0.15834651,71075.0,71062.0,0.04880914]
[1773535555658,0.0959709,71074.0,71062.0,0.0002]
[1773535555855,0.0959709,71072.0,71060.0,0.07056258]
[1773535556054,0.0959709,71072.0,71058.0,0.07036482]
[1773535556253,0.0959709,71072.0,71059.0,0.0014]
[1773535558254,0.07035218,71071.0,71059.0,0.07176394]
[1773535561710,0.16632308,71071.0,71059.0,0.07196394]
[1773535574726,0.16654309,71071.0,71059.0,0.07196394]
[1773535581750,0.09136618,71069.0,71054.0,0.0003271]
[1773535583913,0.07035515,71068.0,71054.0,0.0003271]
[1773535584096,0.09276618,71067.0,71054.0,0.0003271]
[1773535586427,0.07035713,71066.0,71054.0,0.0003271]
[1773535586798,0.09136618,71065.0,71054.0,0.0003271]
[1773535588483,0.07035911,71064.0,71054.0,0.0003271]
[1773535588687,0.09136618,71063.0,71054.0,0.0003271]
[1773535589052,0.09136618,71063.0,71050.0,0.0002]
[1773535589053,0.09136618,71063.0,71045.0,1e-08]
[1773535589247,0.09136618,71049.0,71039.0,0.0002]
[1773535590562,0.09136618,71047.0,71033.0,0.0001271]
[1773535592069,0.09136618,71042.0,71033.0,0.0001271]
[1773535592474,0.09136618,71042.0,71028.0,0.07039459]
[1773535593297,0.07038189,71041.0,71028.0,0.07039459]
[1773535593598,0.09136618,71040.0,71028.0,0.07039459]
[1773535593795,0.09136618,71040.0,71026.0,0.0001271]
[1773535593978,0.09136618,71039.0,71026.0,0.0001271]
[1773535594379,0.09136618,71039.0,71025.0,0.0014]
[1773535594380,0.0914116,71039.0,71025.0,0.0014]
[1773535594699,0.0914116,71039.0,71025.0,0.0016]
[1773535595259,0.07038486,71038.0,71025.0,0.0016]
[1773535595481,0.09276618,71037.0,71025.0,0.0016]
[1773535596469,0.05939412,71035.0,71018.0,0.07075439]
[1773535596674,0.0014,71037.0,71018.0,0.07075439]
[1773535596675,0.05939412,71030.0,71018.0,0.07075439]
[1773535596870,0.1507603,71030.0,71018.0,0.07075439]
[1773535597298,0.09136618,71029.0,71018.0,0.07075439]
[1773535597672,0.07039477,71028.0,71018.0,0.07075439]
[1773535598413,0.16176095,71029.0,71018.0,0.07075439]
[1773535600196,0.07039477,71029.0,71018.0,0.07075439]
[1773535600935,0.06079412,71030.0,71018.0,0.07075439]
[1773535601158,0.07037433,71049.0,71021.0,0.09191176]
[1773535601159,0.0706494,71039.0,71021.0,0.09191176]
[1773535602257,0.0706494,71039.0,71022.0,0.0014]
[1773535602458,0.09136618,71038.0,71022.0,0.0014]
[1773535604574,0.09136618,71036.0,71022.0,0.07180049]
[1773535604729,0.09136618,71034.0,71022.0,0.07180049]
[1773535606490,0.09136618,71034.0,71022.0,0.0014]
[1773535606638,0.09136618,71034.0,71019.0,0.0014]
[1773535606639,0.09136618,71032.0,71019.0,0.0014]
[1773535608439,0.09136618,71032.0,71022.0,0.0002]
[1773535608880,0.0703918,71031.0,71022.0,0.0002]
[1773535610514,0.0703918,71031.0,71022.0,0.07060063]
[1773535611265,0.0703918,71032.0,71022.0,0.07060063]
[1773535619055,0.07178486,71038.0,71023.0,0.05115547]
[1773535619554,0.07178486,71038.0,71022.0,0.07060063]
[1773535619918,0.15954584,71038.0,71022.0,0.07060063]
[1773535620367,0.08776098,71037.0,71021.0,0.0014]
[1773535620562,0.08776098,71037.0,71022.0,0.07040025]
[1773535620736,0.08776098,71037.0,71021.0,0.0014]
[1773535621057,0.08776098,71036.0,71022.0,0.0014]
[1773535621360,0.08776098,71036.0,71019.0,0.07040369]
[1773535621569,0.08776098,71036.0,71023.0,0.0014]
[1773535622192,0.07038783,71035.0,71023.0,0.0014]
[1773535622355,0.08776098,71034.0,71023.0,0.0014]
[1773535622770,0.08776098,71034.0,71022.0,0.07040063]
[1773535622992,0.08776098,71034.0,71021.0,0.0704009]
[1773535623452,0.0014,71034.0,71021.0,0.0704009]
[1773535623773,0.21069646,71035.0,71021.0,0.0704009]
[1773535623973,0.07038783,71035.0,71021.0,0.0704009]
[1773535624531,0.21071341,71035.0,71021.0,0.0704009]
[1773535625285,0.21071341,71035.0,71022.0,0.0014]
[1773535626310,0.21071341,71035.0,71023.0,0.07039972]
[1773535630256,0.21093342,71035.0,71023.0,0.07039972]
[1773535634831,0.21233342,71035.0,71023.0,0.07039972]
[1773535636231,0.21093342,71035.0,71023.0,0.07039972]
[1773535636462,0.21233342,71035.0,71023.0,0.07039972]
[1773535640828,0.3000944,71035.0,71023.0,0.07039972]
[1773535641053,0.22808656,71034.0,71023.0,0.07039972]
[1773535641673,0.07038981,71033.0,71023.0,0.07039972]
[1773535642493,0.07038981,71033.0,71014.0,0.12024876]
[1773535642494,0.07038981,71033.0,71014.0,0.0002]
[1773535642697,0.07038981,71033.0,71003.0,0.07075877]
[1773535642698,0.09524896,71023.0,71003.0,0.00034]
[1773535642839,0.09524896,71019.0,71003.0,0.0707593]
[1773535643037,0.23568145,71019.0,71003.0,0.0707593]
[1773535643256,0.09524896,71019.0,71003.0,0.0707593]
[1773535643459,0.0014,71022.0,70991.0,0.07043131]
[1773535643460,0.09524896,71012.0,70991.0,0.07043131]
[1773535643634,0.0704136,71009.0,70995.0,0.07077928]
[1773535643830,0.09524896,71008.0,70995.0,0.00035205]
[1773535644115,0.09524896,71008.0,70995.0,0.07077935]
[1773535644599,0.09524896,71008.0,70997.0,0.00027386]
[1773535645110,0.09524896,71008.0,70994.0,0.0014]
[1773535645111,0.09524896,71006.0,70994.0,0.03194713]
[1773535645332,0.09524896,71006.0,70992.0,0.07042986]
[1773535645516,0.09524896,71006.0,70992.0,0.07049055]
[1773535645715,0.09524896,71006.0,70994.0,0.07042821]
[1773535646121,0.09524896,71004.0,70992.0,6.069e-05]
[1773535648088,0.07041955,71003.0,70992.0,6.069e-05]
[1773535648505,0.07041955,71003.0,70997.0,0.0002]
[1773535648911,0.0014,71002.0,70997.0,0.0002]
[1773535650742,0.07041955,71003.0,70997.0,0.0002]
[1773535651122,0.0014,71004.0,70997.0,0.0002]
[1773535651468,0.07041955,71003.0,70997.0,0.0002]
[1773535652644,0.07041955,71003.0,70992.0,0.06854634]
[1773535652994,0.07041955,71003.0,70989.0,0.07203245]
[1773535654801,0.07041955,71003.0,70990.0,0.07055332]
[1773535655301,0.07041955,71003.0,70997.0,0.0002]
[1773535655949,0.07041955,71003.0,70997.0,0.0003211]
[1773535660525,0.07041955,71003.0,70989.0,0.0002]
[1773535660732,0.05945056,71000.0,70990.0,0.07183245]
[1773535660971,0.09524896,70999.0,70990.0,0.07043245]
[1773535661175,0.09524896,70999.0,70989.0,0.0016]
[1773535661176,0.09524896,70999.0,70989.0,0.07063331]
[1773535661376,0.09524896,70999.0,70989.0,0.0016]
[1773535661579,0.09524896,70999.0,70989.0,0.0002]
[1773535662663,0.09524896,70997.0,70989.0,0.0002]
[1773535662863,0.09524896,70997.0,70987.0,0.0001825]
[1773535665193,0.0704265,70996.0,70987.0,0.0001825]
[1773535665423,0.16567546,70996.0,70987.0,0.0001825]
[1773535665944,0.09524896,70995.0,70987.0,0.0001825]
[1773535668191,0.07042848,70994.0,70987.0,0.0003825]
[1773535670770,0.0938176,70993.0,70982.0,0.0002]
[1773535671055,0.07042848,70994.0,70982.0,0.07099865]
[1773535671056,0.05945056,70992.0,70982.0,0.07099865]
[1773535671358,0.0938176,70991.0,70982.0,0.07099865]
[1773535672748,0.07043245,70990.0,70982.0,0.07099865]
[1773535675079,0.0014,70993.0,70982.0,0.07099865]
[1773535675269,0.0014,70997.0,70983.0,0.06765173]
[1773535675489,0.0718256,70997.0,70983.0,0.06765173]
[1773535676078,0.0704256,70997.0,70983.0,0.06765173]
[1773535677110,0.0704256,70997.0,70984.0,0.0704384]
[1773535677913,0.00022001,70995.0,70984.0,0.0704384]
[1773535679202,0.07042848,70994.0,70984.0,0.0704384]
[1773535683405,0.07042848,70994.0,70982.0,0.00055848]
[1773535683539,0.07042848,70994.0,70982.0,0.07099798]
[1773535683734,0.09065952,70993.0,70982.0,0.07099798]
[1773535684321,0.07042848,70994.0,70982.0,0.07099798]
[1773535684322,0.05945056,70992.0,70982.0,0.00055848]
[1773535684452,0.09065952,70991.0,70979.0,0.0002]
[1773535684652,0.09065952,70983.0,70968.0,0.07056397]
[1773535684865,0.09065952,70979.0,70968.0,0.07196397]
[1773535685191,0.07044436,70978.0,70968.0,0.07196397]
[1773535686768,0.09065952,70979.0,70968.0,0.07196397]
[1773535686769,0.16110318,70979.0,70968.0,0.07196397]
[1773535686971,0.16110318,70979.0,70968.0,0.07216397]
[1773535687843,0.09065952,70979.0,70968.0,0.07216397]
[1773535688129,0.07043297,70990.0,70969.0,0.178434]
[1773535688283,0.07043297,70990.0,70970.0,0.09287167]
[1773535688486,0.0014,70989.0,70970.0,0.09287167]
[1773535688692,0.12988353,70990.0,70968.0,0.00031]
[1773535688916,0.09065952,70979.0,70968.0,0.00031]
[1773535689093,0.03992639,70989.0,70960.0,0.0002]
[1773535689094,0.09065952,70969.0,70963.0,0.0014]
[1773535689293,0.03706633,70978.0,70963.0,0.0014]
[1773535689530,0.09065952,70975.0,70964.0,0.07045826]
[1773535689864,0.09065952,70975.0,70968.0,0.001]
[1773535690021,0.09065952,70975.0,70963.0,0.07185884]
[1773535690223,0.09065952,70975.0,70963.0,0.07196632]
[1773535690446,0.09077942,70975.0,70963.0,0.07196632]
[1773535691846,0.07044833,70974.0,70963.0,0.07196632]
[1773535692232,0.07056823,70974.0,70963.0,0.07196632]
[1773535693030,0.06915954,70974.0,70963.0,0.07196632]
[1773535693425,0.09065952,70973.0,70964.0,0.0014]
[1773535693853,0.0001199,70974.0,70964.0,0.0014]
[1773535694075,0.0001199,70974.0,70950.0,0.0169]
[1773535694245,0.09065952,70969.0,70951.0,0.0014]
[1773535694455,0.0001199,70974.0,70951.0,0.0014]
[1773535694456,0.07044059,70982.0,70960.0,0.09287167]
[1773535694641,0.07044059,70982.0,70962.0,0.09287167]
[1773535694840,0.07065618,70983.0,70965.0,0.178434]
[1773535694841,0.0002159,70983.0,70965.0,0.178434]
[1773535695062,0.0002159,70983.0,70966.0,0.09287167]
[1773535695337,0.0002159,70983.0,70968.0,0.09287167]
[1773535695541,0.0002159,70983.0,70970.0,0.09287167]
[1773535696055,0.0002159,70983.0,70971.0,0.16332298]
[1773535696259,0.07043373,70989.0,70972.0,0.09287167]
[1773535696462,0.07043464,70988.0,70972.0,0.09287167]
[1773535697083,0.15022437,70990.0,70972.0,0.09287167]
[1773535697084,0.0706489,70994.0,70972.0,0.09287167]
[1773535697585,0.07100763,70994.0,70972.0,0.09287167]
[1773535698084,0.00057874,70994.0,70974.0,0.09287167]
[1773535698441,0.00057874,70994.0,70976.0,0.09287167]
[1773535701302,0.00057874,70994.0,70977.0,0.07044535]
[1773535701457,0.00057874,70994.0,70978.0,0.09287167]
[1773535702797,0.00035213,70995.0,70982.0,0.03735685]
[1773535702956,0.00045967,70995.0,70983.0,0.09549913]
[1773535703157,0.01213356,71002.0,70983.0,0.09549913]
[1773535703360,0.01213356,71002.0,70983.0,0.09585786]
[1773535703775,0.08255427,71002.0,70984.0,0.16453753]
[1773535705610,0.00022001,70994.0,70984.0,0.16453753]
[1773535705784,0.00022001,70994.0,70984.0,0.0704384]
[1773535706118,0.00022001,70994.0,70985.0,0.09409913]
[1773535706416,0.00022001,70994.0,70983.0,0.06998889]
[1773535706616,0.00022001,70994.0,70986.0,0.0014]
[1773535708099,0.00022001,70994.0,70987.0,0.07043543]
[1773535709018,0.08255428,71002.0,70987.0,0.07043543]
[1773535709338,0.01213356,71002.0,70987.0,0.07043543]
[1773535709505,0.08812789,71001.0,70987.0,0.07043543]
[1773535710045,0.08812789,71001.0,70987.0,0.07028653]
[1773535710222,0.07042207,71001.0,70987.0,0.07028653]
[1773535710427,0.08812789,71000.0,70987.0,0.07028653]
[1773535715568,0.0883479,71000.0,70987.0,0.07028653]
[1773535722811,0.08812789,70999.0,70987.0,0.07028653]
[1773535724272,0.0883479,70999.0,70987.0,0.07028653]
[1773535727147,0.0883479,70999.0,70987.0,0.07013762]
[1773535729898,0.0883479,70999.0,70987.0,0.0697854]
[1773535733193,0.0883479,70999.0,70987.0,0.0699854]
[1773535735405,0.0883479,70999.0,70982.0,0.10920176]
[1773535735406,0.08550723,70997.0,70980.0,0.07184148]
[1773535735589,0.08586656,70997.0,70980.0,0.07184148]
[1773535737323,0.0704265,70996.0,70980.0,0.07184148]
[1773535737568,0.15593373,70996.0,70980.0,0.07184148]
[1773535737928,0.08550723,70995.0,70980.0,0.07184148]
[1773535739395,0.07042848,70994.0,70980.0,0.07044148]
[1773535739595,0.08550723,70993.0,70981.0,0.0014]
[1773535741003,0.00035933,70997.0,70982.0,0.08656421]
[1773535741231,0.07078486,70997.0,70982.0,0.08656421]
[1773535741439,0.08550723,70996.0,70982.0,0.07044039]
[1773535743137,0.00022001,70999.0,70984.0,0.03712292]
[1773535743357,0.00022001,70999.0,70985.0,0.08656421]
[1773535743560,0.00022001,70999.0,70986.0,0.15700063]
[1773535744342,0.00022001,70999.0,70987.0,0.0014]
[1773535746323,0.00022001,70999.0,70988.0,0.07043443]
[1773535749653,0.00022001,70999.0,70984.0,0.03748225]
[1773535749654,0.07042451,70998.0,70984.0,0.0704384]
[1773535749832,0.08550723,70997.0,70985.0,0.0014]
[1773535750020,0.08586656,70997.0,70985.0,0.0014]
[1773535750318,0.08586656,70997.0,70987.0,0.0002]
[1773535751904,0.0704265,70996.0,70987.0,0.0002]
[1773535752291,0.08550723,70995.0,70980.0,0.0002]
[1773535752543,0.08550723,70995.0,70981.0,0.0014]
[1773535753094,0.08550723,70995.0,70982.0,0.0014]
[1773535753293,0.08550723,70995.0,70980.0,0.07064221]
[1773535753743,0.08550723,70995.0,70981.0,0.0014]
[1773535754101,0.05956485,70991.0,70982.0,0.07044039]
[1773535754328,0.05956485,70991.0,70983.0,0.0014]
[1773535754898,0.05956485,70991.0,70984.0,0.0014]
[1773535755342,0.05956485,70991.0,70982.0,0.07044039]
[1773535755505,0.08550723,70992.0,70985.0,0.0014]
[1773535755708,0.08550723,70992.0,70982.0,0.07044039]
[1773535755927,0.08550723,70992.0,70983.0,0.0014]
[1773535756131,0.08550723,70990.0,70980.0,0.0002]
[1773535756515,0.08550723,70990.0,70981.0,0.0014]
[1773535757033,0.08550723,70990.0,70980.0,0.07064229]
[1773535757200,0.08550723,70990.0,70982.0,0.0014]
[1773535757400,0.08550723,70990.0,70980.0,0.07064229]
[1773535757627,0.08550723,70990.0,70981.0,0.0014]
[1773535757829,0.08550723,70990.0,70981.0,0.0016]
[1773535758474,0.07043344,70989.0,70980.0,0.0016]
[1773535761077,0.07043344,70989.0,70980.0,0.00145106]
[1773535764804,0.08804961,70988.0,70977.0,0.00035213]
[1773535765014,0.08804961,70988.0,70977.0,0.07079722]
[1773535765909,0.08804961,70988.0,70978.0,0.0014]
[1773535766329,0.08804961,70988.0,70979.0,0.0014]
[1773535767021,0.08804961,70988.0,70977.0,0.07079722]
[1773535767022,0.07043543,70987.0,70980.0,0.0014]
[1773535767390,0.07043543,70987.0,70981.0,0.0014]
[1773535767597,0.07043543,70987.0,70977.0,0.0002]
[1773535767802,0.07043543,70987.0,70977.0,0.07064509]
[1773535768006,0.07043543,70987.0,70978.0,0.0014]
[1773535768437,0.07043543,70987.0,70979.0,0.0014]
[1773535769198,0.07043543,70987.0,70977.0,0.07064509]
[1773535769407,0.07043543,70987.0,70978.0,0.0014]
[1773535769804,0.07043543,70987.0,70977.0,0.07064509]
[1773535770002,0.07043543,70987.0,70979.0,0.0014]
[1773535770200,0.07043543,70987.0,70976.0,0.0014]
[1773535770201,0.08804961,70986.0,70976.0,0.0014]
[1773535770406,0.08804961,70986.0,70973.0,0.0002]
[1773535771151,0.08804961,70986.0,70973.0,0.0016]
[1773535771302,0.14757971,70983.0,70973.0,0.0016]
[1773535772232,0.08804961,70983.0,70973.0,0.0016]
[1773535774789,0.07044039,70982.0,70973.0,0.0016]
[1773535776760,0.07044039,70982.0,70973.0,0.0002]
[1773535776965,0.07044039,70982.0,70969.0,0.0002]
[1773535777142,0.08804961,70981.0,70969.0,0.0002]
[1773535777340,0.08804961,70981.0,70969.0,0.0016]
[1773535777546,0.08804961,70981.0,70970.0,0.0014]
[1773535779378,0.08804961,70979.0,70969.0,0.0002]
[1773535779562,0.07044237,70980.0,70969.0,0.0002]
[1773535781722,0.08804961,70979.0,70969.0,0.0002]
[1773535781898,0.07044039,70983.0,70969.0,0.07065328]
[1773535782061,0.07044039,70983.0,70970.0,0.0867616]
[1773535783494,0.0704394,70985.0,70970.0,0.0867616]
[1773535783724,0.00022001,70983.0,70970.0,0.0867616]
[1773535784622,0.00022001,70983.0,70969.0,0.0002]
[1773535785955,0.07044039,70982.0,70969.0,0.0002]
[1773535786942,0.07044039,70982.0,70969.0,0.07065291]
[1773535787532,0.07044039,70982.0,70969.0,0.0002]
[1773535787951,0.07044039,70982.0,70969.0,5.113e-05]
[1773535788115,0.07044039,70982.0,70970.0,0.0867616]
[1773535788316,0.07044039,70982.0,70961.0,0.0002]
[1773535788500,0.08804961,70979.0,70965.0,0.0706572]
[1773535788847,0.08804961,70979.0,70966.0,0.0014]
[1773535789046,0.07044039,70982.0,70966.0,0.0014]
[1773535789224,0.07044039,70982.0,70967.0,0.0014]
[1773535791393,0.07044039,70982.0,70968.0,0.07045428]
[1773535792883,0.0706604,70982.0,70968.0,0.07045428]
[1773535801334,0.0706604,70982.0,70968.0,0.07065428]
[1773535802895,0.0706604,70982.0,70968.0,0.07050539]
[1773535803100,0.21083061,70982.0,70968.0,0.07050539]
[1773535803300,0.21079061,70982.0,70968.0,0.07050539]
[1773535803520,0.21079061,70982.0,70968.0,0.07046539]
[1773535803718,0.14039022,70982.0,70968.0,0.07046539]
[1773535803928,0.07064476,70998.0,70972.0,0.178434]
[1773535804283,0.07100572,70997.0,70975.0,0.0873418]
[1773535804447,0.00057934,70997.0,70983.0,0.0873418]
[1773535804647,0.00057934,70997.0,70985.0,0.0873418]